lending/lending_fUSD_20240710
["ID","MTS","AMOUNT","RATE_DAILY","PERIOD"]
[331602030,1720578691586,-1357.14,0.00013939,2]
[331602031,1720578691596,-1164.74,0.00013939,2]
[331602032,1720578691605,-551.72435466,0.00013939,2]
[331602033,1720578691615,-2541.37,0.00013939,2]
[331602034,1720578691624,-500.0,0.00013939,2]
[331602035,1720578691634,-2269.15,0.00013939,2]
[331602036,1720578691644,-500.0,0.00013939,2]
[331602037,1720578691653,-677.36,0.00013939,2]
[331602038,1720578691663,-1092.06,0.00013939,2]
[331602039,1720578691672,-706.32,0.00013939,2]
[331602040,1720578691681,-652.31,0.00013939,2]
[331602041,1720578691691,-1323.65,0.00013939,2]
[331602042,1720578691702,-3373.37,0.00013939,2]
[331602043,1720578691712,-500.0,0.00013939,2]
[331602044,1720578691723,-1840.96,0.00013939,2]
[331602045,1720578691732,-500.0,0.00013939,2]
[331602046,1720578691742,-500.0,0.00013939,2]
[331602047,1720578691752,-2752.03,0.00013939,2]
[331602048,1720578691763,-500.0,0.00013939,2]
[331602049,1720578691923,-865.68,0.00013939,2]
[331602050,1720578691934,-500.0,0.00013939,2]
[331602051,1720578691943,-182.78,0.00013939,2]
[331602052,1720578691953,-630.4,0.00013939,2]
[331602053,1720578691963,-2161.78,0.00013939,2]
[331602054,1720578691974,-500.0,0.00013939,2]
[331602055,1720578691983,-1387.02,0.00013939,2]
[331602056,1720578691993,-500.0,0.00013939,2]
[331602057,1720578692003,-2201.53,0.00013939,2]
[331602058,1720578692013,-2690.13,0.00013939,2]
[331602059,1720578692023,-755.58,0.00013939,2]
[331602060,1720578692032,-500.0,0.00013939,2]
[331602061,1720578692042,-3077.31,0.00013939,2]
[331602062,1720578692052,-500.0,0.00013939,2]
[331602063,1720578692062,-507.74,0.00013939,2]
[331602064,1720578692071,-3164.67,0.00013939,2]
[331602065,1720578692081,-500.0,0.00013939,2]
[331602066,1720578692091,-652.98,0.00013939,2]
[331602067,1720578692102,-500.0,0.00013939,2]
[331602068,1720578692111,-2774.62,0.00013939,2]
[331602069,1720578692123,-500.0,0.00013939,2]
[331602070,1720578692132,-500.0,0.00013939,2]
[331602071,1720578692142,-1061.39,0.00013939,2]
[331602072,1720578692152,-500.0,0.00013939,2]
[331602073,1720578692162,-2518.94,0.00013939,2]
[331602074,1720578692171,-500.0,0.00013939,2]
[331602075,1720578692181,-3436.86,0.00013939,2]
[331602076,1720578692190,-1304.47,0.00013939,2]
[331602077,1720578692202,-500.0,0.00013939,2]
[331602078,1720578692211,-5696.56,0.00013939,2]
[331602079,1720578692221,-500.0,0.00013939,2]
[331602080,1720578692230,-500.0,0.00013939,2]
[331602081,1720578692240,-733.34,0.00013939,2]
[331602082,1720578692250,-727.9,0.00013939,2]
[331602083,1720578692259,-500.0,0.00013939,2]
[331602084,1720578692269,-527.91,0.00013939,2]
[331602085,1720578692279,-834.6,0.00013939,2]
[331602086,1720578692288,-500.0,0.00013939,2]
[331602087,1720578692298,-500.0,0.00013939,2]
[331602088,1720578692307,-500.0,0.00013939,2]
[331602089,1720578692317,-1170.38,0.00013939,2]
[331602090,1720578692326,-1410.52,0.00013939,2]
[331602091,1720578692336,-2703.57,0.00013939,2]
[331602092,1720578692345,-500.0,0.00013939,2]
[331602093,1720578692355,-710.8,0.00013939,2]
[331602094,1720578692364,-924.07,0.00013939,2]
[331602095,1720578692374,-1580.34,0.00013939,2]
[331602096,1720578692384,-500.0,0.00013939,2]
[331602097,1720578692393,-500.0,0.00013939,2]
[331602098,1720578692403,-2432.31,0.00013939,2]
[331602099,1720578692412,-500.0,0.00013939,2]
[331602100,1720578692421,-2887.55,0.00013939,2]
[331602101,1720578692431,-1197.44,0.00013939,2]
[331602102,1720578692440,-573.03,0.00013939,2]
[331602103,1720578692450,-2491.04,0.00013939,2]
[331602104,1720578692459,-824.06,0.00013939,2]
[331602105,1720578692469,-502.79,0.00013939,2]
[331602106,1720578692479,-1513.67,0.00013939,2]
[331602107,1720578692488,-901.58,0.00013939,2]
[331602108,1720578692498,-500.0,0.00013939,2]
[331602109,1720578692508,-500.0,0.00013939,2]
[331602110,1720578692518,-500.0,0.00013939,2]
[331602111,1720578692527,-658.31,0.00013939,2]
[331602112,1720578692537,-500.0,0.00013939,2]
[331602113,1720578692546,-3723.61,0.00013939,2]
[331602114,1720578692556,-1842.59,0.00013939,2]
[331602115,1720578692565,-500.0,0.00013939,2]
[331602116,1720578692576,-1038.91,0.00013939,2]
[331602117,1720578692586,-500.0,0.00013939,2]
[331602118,1720578692596,-500.0,0.00013939,2]
[331602119,1720578692606,-500.0,0.00013939,2]
[331602120,1720578692616,-500.0,0.00013939,2]
[331602121,1720578692626,-3126.15,0.00013939,2]
[331602122,1720578692636,-963.4,0.00013939,2]
[331602123,1720578692646,-500.0,0.00013939,2]
[331602124,1720578692656,-2795.73,0.00013939,2]
[331602125,1720578692666,-1148.88,0.00013939,2]
[331602126,1720578692675,-1515.65,0.00013939,2]
[331602127,1720578692685,-3926.91,0.00013939,2]
[331602128,1720578692695,-1067.87,0.00013939,2]
[331602129,1720578692704,-839.35,0.00013939,2]
[331602130,1720578692714,-3821.49,0.00013939,2]
[331602131,1720578692723,-1604.72,0.00013939,2]
[331602132,1720578692732,-500.0,0.00013939,2]
[331602133,1720578692742,-4888.15,0.00013939,2]
[331602134,1720578692753,-1623.67,0.00013939,2]
[331602135,1720578692762,-500.0,0.00013939,2]
[331602136,1720578692772,-661.72,0.00013939,2]
[331602137,1720578692782,-500.0,0.00013939,2]
[331602138,1720578692791,-1501.83,0.00013939,2]
[331602139,1720578692800,-500.0,0.00013939,2]
[331602140,1720578692810,-500.0,0.00013939,2]
[331602141,1720578692820,-500.0,0.00013939,2]
[331602142,1720578692830,-1401.76,0.00013939,2]
[331602143,1720578692840,-500.0,0.00013939,2]
[331602144,1720578692851,-1061.57,0.00013939,2]
[331602145,1720578692861,-741.03,0.00013939,2]
[331602146,1720578692872,-537.65,0.00013939,2]
[331602147,1720578692882,-684.66,0.00013939,2]
[331602148,1720578692891,-1170.81,0.00013939,2]
[331602149,1720578692901,-2691.6,0.00013939,2]
[331602150,1720578692911,-500.0,0.00013939,2]
[331602151,1720578692921,-500.0,0.00013939,2]
[331602152,1720578692930,-924.35,0.00013939,2]
[331602153,1720578692940,-500.0,0.00013939,2]
[331602154,1720578692950,-3616.61,0.00013939,2]
[331602155,1720578692960,-650.77,0.00013939,2]
[331602156,1720578692970,-500.0,0.00013939,2]
[331602157,1720578692979,-1042.86,0.00013939,2]
[331602158,1720578692988,-500.0,0.00013939,2]
[331602159,1720578692998,-500.0,0.00013939,2]
[331602160,1720578693007,-500.0,0.00013939,2]
[331602161,1720578693017,-500.0,0.00013939,2]
[331602162,1720578693026,-500.0,0.00013939,2]
[331602163,1720578693036,-500.0,0.00013939,2]
[331602164,1720578693045,-203.44689318,0.00013939,2]
[331602165,1720578693055,-1099.76,0.00013939,2]
[331602166,1720578693065,-3471.64,0.00013939,2]
[331602167,1720578693075,-614.93,0.00013939,2]
[331602168,1720578693084,-500.0,0.00013939,2]
[331602169,1720578693094,-632.86,0.00013939,2]
[331602170,1720578693104,-659.18,0.00013939,2]
[331602171,1720578693113,-1436.02,0.00013939,2]
[331602172,1720578693126,-500.0,0.00013939,2]
[331602173,1720578693137,-4481.36,0.00013939,2]
[331602174,1720578693147,-2722.72,0.00013939,2]
[331602175,1720578693157,-1043.36,0.00013939,2]
[331602176,1720578693167,-927.02,0.00013939,2]
[331602177,1720578693177,-500.0,0.00013939,2]
[331602178,1720578693186,-500.0,0.00013939,2]
[331602179,1720578693196,-3281.01,0.00013939,2]
[331602180,1720578693206,-500.0,0.00013939,2]
[331602181,1720578693215,-500.0,0.00013939,2]
[331602182,1720578693225,-1356.64,0.00013939,2]
[331602183,1720578693234,-1807.88,0.00013939,2]
[331602184,1720578693243,-500.0,0.00013939,2]
[331602185,1720578693253,-500.0,0.00013939,2]
[331602186,1720578693263,-500.0,0.00013939,2]
[331602187,1720578693273,-1143.16,0.00013939,2]
[331602188,1720578693283,-500.0,0.00013939,2]
[331602189,1720578693292,-725.99,0.00013939,2]
[331602190,1720578693302,-568.75,0.00013939,2]
[331602191,1720578693312,-500.0,0.00013939,2]
[331602192,1720578693321,-500.0,0.00013939,2]
[331602193,1720578693332,-968.12,0.00013939,2]
[331602194,1720578693341,-3207.44,0.00013939,2]
[331602195,1720578693351,-1828.72,0.00013939,2]
[331602196,1720578693362,-717.01,0.00013939,2]
[331602197,1720578693372,-1258.63,0.00013939,2]
[331602198,1720578693382,-571.53,0.00013939,2]
[331602199,1720578693392,-500.0,0.00013939,2]
[331602200,1720578693401,-500.0,0.00013939,2]
[331602201,1720578693411,-1174.42,0.00013939,2]
[331602202,1720578693421,-5426.52,0.00013939,2]
[331602203,1720578693431,-1811.79,0.00013939,2]
[331602204,1720578693440,-500.0,0.00013939,2]
[331602205,1720578693450,-1125.78,0.00013939,2]
[331602206,1720578693459,-802.8,0.00013939,2]
[331602207,1720578693468,-500.0,0.00013939,2]
[331602208,1720578693477,-2890.79,0.00013939,2]
[331602209,1720578693487,-1317.14,0.00013939,2]
[331602210,1720578693496,-1793.51,0.00013939,2]
[331602211,1720578693505,-4305.73,0.00013939,2]
[331602212,1720578693514,-518.73,0.00013939,2]
[331602213,1720578693525,-943.48,0.00013939,2]
[331602214,1720578693535,-3242.01,0.00013939,2]
[331602215,1720578693545,-2661.75,0.00013939,2]
[331602216,1720578693555,-689.55,0.00013939,2]
[331602217,1720578693564,-2557.46,0.00013939,2]
[331602218,1720578693574,-500.0,0.00013939,2]
[331602219,1720578693583,-713.54,0.00013939,2]
[331602220,1720578693592,-500.0,0.00013939,2]
[331602221,1720578693603,-1271.47,0.00013939,2]
[331602222,1720578693612,-1083.72,0.00013939,2]
[331602223,1720578693620,-3740.98,0.00013939,2]
[331602224,1720578693628,-500.0,0.00013939,2]
[331602225,1720578693637,-1248.4,0.00013939,2]
[331602226,1720578693645,-500.0,0.00013939,2]
[331602227,1720578693653,-1181.57,0.00013939,2]
[331602228,1720578693662,-500.0,0.00013939,2]
[331602229,1720578693671,-765.33,0.00013939,2]
[331602230,1720578693680,-1479.51,0.00013939,2]
[331602231,1720578693690,-644.76,0.00013939,2]
[331602232,1720578693699,-794.79,0.00013939,2]
[331602233,1720578693709,-500.0,0.00013939,2]
[331602234,1720578693718,-2317.96,0.00013939,2]
[331602235,1720578693727,-2337.29,0.00013939,2]
[331602236,1720578693736,-1041.58,0.00013939,2]
[331602237,1720578693745,-968.21,0.00013939,2]
[331602238,1720578693754,-500.0,0.00013939,2]
[331602239,1720578693763,-500.0,0.00013939,2]
[331602240,1720578693773,-500.0,0.00013939,2]
[331602241,1720578693782,-4380.69,0.00013939,2]
[331602242,1720578693791,-1923.02,0.00013939,2]
[331602243,1720578693800,-530.57209839,0.00013939,2]
[331602244,1720578693809,-500.0,0.00013939,2]
[331602245,1720578693818,-500.0,0.00013939,2]
[331602246,1720578693828,-1529.72,0.00013939,2]
[331602247,1720578693838,-500.0,0.00013939,2]
[331602248,1720578693848,-500.0,0.00013939,2]
[331602249,1720578693858,-545.49972802,0.00013939,2]
[331602250,1720578693868,-500.0,0.00013939,2]
[331602251,1720578693877,-3238.09,0.00013939,2]
[331602252,1720578693886,-500.0,0.00013939,2]
[331602253,1720578693895,-1148.94,0.00013939,2]
[331602254,1720578693905,-1148.94,0.00013939,2]
[331602255,1720578693914,-1002.12,0.00013939,2]
[331602256,1720578693923,-980.41,0.00013939,2]
[331602257,1720578693932,-500.0,0.00013939,2]
[331602258,1720578693942,-1390.96,0.00013939,2]
[331602259,1720578693951,-500.0,0.00013939,2]
[331602260,1720578693960,-1974.57,0.00013939,2]
[331602261,1720578693970,-500.0,0.00013939,2]
[331602262,1720578694362,-952.07,0.00013939,2]
[331602263,1720578694372,-658.29,0.00013939,2]
[331602264,1720578694381,-500.0,0.00013939,2]
[331602265,1720578694390,-500.0,0.00013939,2]
[331602266,1720578694400,-500.0,0.00013939,2]
[331602267,1720578694410,-2293.08,0.00013939,2]
[331602268,1720578694419,-500.0,0.00013939,2]
[331602269,1720578694429,-879.8,0.00013939,2]
[331602270,1720578694439,-5568.96,0.00013939,2]
[331602271,1720578694448,-500.0,0.00013939,2]
[331602272,1720578694458,-500.0,0.00013939,2]
[331602273,1720578694467,-2089.34,0.00013939,2]
[331602274,1720578694477,-3794.84,0.00013939,2]
[331602275,1720578694486,-500.0,0.00013939,2]
[331602276,1720578694496,-500.0,0.00013939,2]
[331602277,1720578694505,-1116.11,0.00013939,2]
[331602278,1720578694514,-1057.08,0.00013939,2]
[331602279,1720578694523,-500.0,0.00013939,2]
[331602280,1720578694532,-3723.23,0.00013939,2]
[331602281,1720578694542,-500.0,0.00013939,2]
[331602282,1720578694551,-500.0,0.00013939,2]
[331602283,1720578694560,-4028.33,0.00013939,2]
[331602284,1720578694570,-1071.85,0.00013939,2]
[331602285,1720578694582,-1308.49,0.00013939,2]
[331602286,1720578694591,-500.0,0.00013939,2]
[331602287,1720578694600,-607.01,0.00013939,2]
[331602288,1720578694610,-796.74,0.00013939,2]
[331602289,1720578694619,-2550.62,0.00013939,2]
[331602290,1720578694628,-500.0,0.00013939,2]
[331602291,1720578694637,-3309.42,0.00013939,2]
[331602292,1720578694646,-851.82,0.00013939,2]
[331602293,1720578694655,-751.82,0.00013939,2]
[331602294,1720578694665,-1952.3,0.00013939,2]
[331602295,1720578694674,-2070.44,0.00013939,2]
[331602296,1720578694684,-500.0,0.00013939,2]
[331602297,1720578694693,-1170.3,0.00013939,2]
[331602298,1720578694702,-639.17,0.00013939,2]
[331602299,1720578694711,-500.0,0.00013939,2]
[331602300,1720578694721,-2105.71,0.00013939,2]
[331602301,1720578694731,-623.84,0.00013939,2]
[331602302,1720578694740,-2886.6,0.00013939,2]
[331602303,1720578694750,-539.23,0.00013939,2]
[331602304,1720578694760,-1872.17,0.00013939,2]
[331602305,1720578694770,-868.45,0.00013939,2]
[331602306,1720578694779,-1219.17,0.00013939,2]
[331602307,1720578694788,-655.24,0.00013939,2]
[331602308,1720578694798,-298.66340895,0.00013939,2]
[331602309,1720578694808,-482.90929405,0.00013939,2]
[331602310,1720578694817,-777.75,0.00013939,2]
[331602311,1720578694827,-500.0,0.00013939,2]
[331602312,1720578694836,-599.32,0.00013939,2]
[331602313,1720578694845,-2329.47,0.00013939,2]
[331602314,1720578694856,-3968.07,0.00013939,2]
[331602315,1720578694866,-500.0,0.00013939,2]
[331602316,1720578694876,-663.26,0.00013939,2]
[331602317,1720578694885,-1875.4,0.00013939,2]
[331602318,1720578694894,-4077.31,0.00013939,2]
[331602319,1720578694903,-3530.8,0.00013939,2]
[331602320,1720578694913,-1218.44,0.00013939,2]
[331602321,1720578694922,-1457.6,0.00013939,2]
[331602322,1720578694932,-500.0,0.00013939,2]
[331602323,1720578694941,-2781.87,0.00013939,2]
[331602324,1720578694951,-500.0,0.00013939,2]
[331602325,1720578694960,-500.0,0.00013939,2]
[331602326,1720578694969,-500.0,0.00013939,2]
[331602327,1720578694978,-3490.15,0.00013939,2]
[331602328,1720578694988,-852.1,0.00013939,2]
[331602329,1720578694997,-500.0,0.00013939,2]
[331602330,1720578695006,-3483.06,0.00013939,2]
[331602331,1720578695016,-500.0,0.00013939,2]
[331602332,1720578695025,-602.02,0.00013939,2]
[331602333,1720578695034,-500.0,0.00013939,2]
[331602334,1720578695044,-500.0,0.00013939,2]
[331602335,1720578695053,-954.89,0.00013939,2]
[331602336,1720578695062,-500.0,0.00013939,2]
[331602337,1720578695076,-1557.06,0.00013939,2]
[331602338,1720578695085,-3889.37,0.00013939,2]
[331602339,1720578695095,-577.12,0.00013939,2]
[331602340,1720578695103,-1018.29,0.00013939,2]
[331602341,1720578695113,-1421.19,0.00013939,2]
[331602342,1720578695123,-2534.53,0.00013939,2]
[331602343,1720578695132,-500.0,0.00013939,2]
[331602344,1720578695142,-2027.01,0.00013939,2]
[331602345,1720578695151,-1232.23,0.00013939,2]
[331602346,1720578695160,-796.28,0.00013939,2]
[331602347,1720578695169,-3249.13,0.00013939,2]
[331602348,1720578695178,-3416.97,0.00013939,2]
[331602349,1720578695187,-912.7,0.00013939,2]
[331602350,1720578695199,-628.03,0.00013939,2]
[331602351,1720578695208,-2259.25,0.00013939,2]
[331602352,1720578695218,-500.0,0.00013939,2]
[331602353,1720578695228,-1929.12,0.00013939,2]
[331602354,1720578695237,-500.0,0.00013939,2]
[331602355,1720578695247,-500.0,0.00013939,2]
[331602356,1720578695256,-4612.26,0.00013939,2]
[331602357,1720578695265,-500.0,0.00013939,2]
[331602358,1720578695275,-1229.65,0.00013939,2]
[331602359,1720578695284,-500.0,0.00013939,2]
[331602360,1720578695293,-1289.3,0.00013939,2]
[331602361,1720578695302,-1330.94,0.00013939,2]
[331602362,1720578695312,-500.0,0.00013939,2]
[331602363,1720578695322,-1469.74,0.00013939,2]
[331602364,1720578695332,-4719.0,0.00013939,2]
[331602365,1720578695342,-1958.4,0.00013939,2]
[331602366,1720578695351,-500.0,0.00013939,2]
[331602367,1720578695360,-4118.25,0.00013939,2]
[331602368,1720578695370,-1019.09,0.00013939,2]
[331602369,1720578695379,-500.0,0.00013939,2]
[331602370,1720578695388,-500.0,0.00013939,2]
[331602371,1720578695398,-2524.16,0.00013939,2]
[331602372,1720578695407,-500.0,0.00013939,2]
[331602373,1720578695416,-500.0,0.00013939,2]
[331602374,1720578695425,-1541.81,0.00013939,2]
[331602375,1720578695435,-1668.28,0.00013939,2]
[331602376,1720578695444,-500.0,0.00013939,2]
[331602377,1720578695453,-885.52,0.00013939,2]
[331602378,1720578695462,-673.97,0.00013939,2]
[331602379,1720578695471,-1226.77,0.00013939,2]
[331602380,1720578695480,-2920.14,0.00013939,2]
[331602381,1720578695489,-500.0,0.00013939,2]
[331602382,1720578695499,-1056.97,0.00013939,2]
[331602383,1720578695508,-857.73,0.00013939,2]
[331602384,1720578695517,-1638.84,0.00013939,2]
[331602385,1720578695526,-1457.4,0.00013939,2]
[331602386,1720578695535,-500.0,0.00013939,2]
[331602387,1720578695544,-500.0,0.00013939,2]
[331602388,1720578695553,-720.29,0.00013939,2]
[331602389,1720578695562,-1346.39,0.00013939,2]
[331602390,1720578695571,-1127.85,0.00013939,2]
[331602391,1720578695581,-1706.17,0.00013939,2]
[331602392,1720578695590,-1239.0,0.00013939,2]
[331602393,1720578695599,-500.0,0.00013939,2]
[331602394,1720578695608,-3650.73,0.00013939,2]
[331602395,1720578695617,-520.91,0.00013939,2]
[331602396,1720578695626,-500.0,0.00013939,2]
[331602397,1720578695635,-500.0,0.00013939,2]
[331602398,1720578695644,-1741.78,0.00013939,2]
[331602399,1720578695653,-927.35,0.00013939,2]
[331602400,1720578695662,-500.0,0.00013939,2]
[331602401,1720578695671,-500.0,0.00013939,2]
[331602402,1720578695680,-500.0,0.00013939,2]
[331602403,1720578695690,-922.38,0.00013939,2]
[331602404,1720578695699,-2313.53,0.00013939,2]
[331602405,1720578695708,-500.0,0.00013939,2]
[331602406,1720578695718,-503.82,0.00013939,2]
[331602407,1720578695728,-3557.48,0.00013939,2]
[331602408,1720578695738,-500.0,0.00013939,2]
[331602409,1720578695748,-1970.43,0.00013939,2]
[331602410,1720578695758,-3525.51,0.00013939,2]
[331602411,1720578695767,-1109.56,0.00013939,2]
[331602412,1720578695776,-609.31,0.00013939,2]
[331602413,1720578695786,-4650.87,0.00013939,2]
[331602414,1720578695797,-500.0,0.00013939,2]
[331602415,1720578695806,-861.16,0.00013939,2]
[331602416,1720578695816,-506.91,0.00013939,2]
[331602417,1720578695826,-632.68,0.00013939,2]
[331602418,1720578695835,-500.0,0.00013939,2]
[331602419,1720578695845,-772.45,0.00013939,2]
[331602420,1720578695854,-500.0,0.00013939,2]
[331602421,1720578695864,-500.0,0.00013939,2]
[331602422,1720578695874,-1752.78,0.00013939,2]
[331602423,1720578695883,-500.0,0.00013939,2]
[331602424,1720578695892,-1346.76,0.00013939,2]
[331602425,1720578695902,-500.0,0.00013939,2]
[331602426,1720578695912,-1401.3,0.00013939,2]
[331602427,1720578695921,-706.06,0.00013939,2]
[331602428,1720578695931,-500.0,0.00013939,2]
[331602429,1720578695941,-500.0,0.00013939,2]
[331602430,1720578695952,-500.0,0.00013939,2]
[331602431,1720578695962,-500.0,0.00013939,2]
[331602432,1720578695972,-500.0,0.00013939,2]
[331602433,1720578695982,-883.34,0.00013939,2]
[331602434,1720578695993,-500.0,0.00013939,2]
[331602435,1720578696003,-752.49,0.00013939,2]
[331602436,1720578696012,-500.0,0.0001394,2]
[331602437,1720578696021,-500.0,0.0001394,2]
[331602438,1720578696031,-500.0,0.0001394,2]
[331602439,1720578696040,-500.0,0.0001394,2]
[331602440,1720578696049,-500.0,0.0001394,2]
[331602441,1720578696059,-500.0,0.0001394,2]
[331602442,1720578696068,-500.0,0.0001394,2]
[331602443,1720578696079,-500.0,0.0001394,2]
[331602444,1720578696088,-500.0,0.0001394,2]
[331602445,1720578696097,-500.0,0.0001394,2]
[331602446,1720578696106,-500.0,0.0001394,2]
[331602447,1720578696115,-500.0,0.0001394,2]
[331602448,1720578696126,-500.0,0.0001394,2]
[331602449,1720578696135,-500.0,0.0001394,2]
[331602450,1720578696144,-500.0,0.0001394,2]
[331602451,1720578696154,-500.0,0.0001394,2]
[331602452,1720578696163,-500.0,0.0001394,2]
[331602453,1720578696172,-500.0,0.0001394,2]
[331602454,1720578696182,-500.0,0.0001394,2]
[331602455,1720578696191,-500.0,0.0001394,2]
[331602456,1720578696201,-500.0,0.0001394,2]
[331602457,1720578696211,-473.57089504,0.0001394,2]
[331602458,1720578696222,-500.0,0.0001394,2]
[331602459,1720578696233,-500.0,0.0001394,2]
[331602460,1720578696243,-500.0,0.0001394,2]
[331602461,1720578696252,-500.0,0.0001394,2]
[331602462,1720578696262,-500.0,0.0001394,2]
[331602463,1720578696271,-500.0,0.0001394,2]
[331602464,1720578696281,-500.0,0.0001394,2]
[331602465,1720578696290,-500.0,0.0001394,2]
[331602466,1720578696300,-500.0,0.0001394,2]
[331602467,1720578696309,-500.0,0.0001394,2]
[331602468,1720578696318,-500.0,0.0001394,2]
[331602469,1720578696329,-500.0,0.0001394,2]
[331602470,1720578696338,-500.0,0.0001394,2]
[331602471,1720578696347,-648.59010152,0.0001394,2]
[331602472,1720578696356,-500.0,0.0001394,2]
[331602473,1720578696365,-500.0,0.0001394,2]
[331602474,1720578696374,-500.0,0.0001394,2]
[331602475,1720578696383,-500.0,0.0001394,2]
[331602476,1720578696392,-500.0,0.0001394,2]
[331602477,1720578696402,-500.0,0.0001394,2]
[331602478,1720578696411,-337.40088039,0.0001394,2]
[331602479,1720578696420,-500.0,0.0001394,2]
[331602480,1720578696431,-500.0,0.0001394,2]
[331602481,1720578696443,-500.0,0.0001394,2]
[331602482,1720578696454,-817.04,0.0001394,2]
[331602483,1720578696464,-817.04,0.0001394,2]
[331602484,1720578696474,-500.0,0.0001394,2]
[331602485,1720578696485,-536.51761012,0.0001394,2]
[331602486,1720578696495,-500.0,0.0001394,2]
[331602487,1720578696504,-500.0,0.0001394,2]
[331602488,1720578696514,-500.0,0.0001394,2]
[331602489,1720578696523,-420.6330637,0.0001394,2]
[331602490,1720578696532,-500.0,0.0001394,2]
[331602491,1720578696542,-500.0,0.0001394,2]
[331602492,1720578696552,-500.0,0.0001394,2]
[331602493,1720578696561,-500.0,0.0001394,2]
[331602494,1720578696570,-372.53086539,0.0001394,2]
[331602495,1720578696581,-500.0,0.0001394,2]
[331602496,1720578696591,-500.0,0.0001394,2]
[331602497,1720578696600,-500.0,0.0001394,2]
[331602498,1720578696609,-500.0,0.0001394,2]
[331602499,1720578696618,-500.0,0.0001394,2]
[331602500,1720578696627,-500.0,0.0001394,2]
[331602501,1720578696636,-500.0,0.0001394,2]
[331602502,1720578696771,-500.0,0.0001394,2]
[331602503,1720578696780,-500.0,0.0001394,2]
[331602504,1720578696789,-500.0,0.0001394,2]
[331602505,1720578696798,-500.0,0.0001394,2]
[331602506,1720578696808,-205.5471902,0.0001394,2]
[331602507,1720578696817,-500.0,0.0001394,2]
[331602508,1720578696827,-500.0,0.0001394,2]
[331602509,1720578696836,-500.0,0.0001394,2]
[331602510,1720578696845,-500.0,0.0001394,2]
[331602511,1720578696857,-500.0,0.0001394,2]
[331602512,1720578696868,-500.0,0.0001394,2]
[331602513,1720578696877,-500.0,0.0001394,2]
[331602514,1720578696887,-500.0,0.0001394,2]
[331602515,1720578696896,-500.0,0.0001394,2]
[331602516,1720578696906,-644.29878922,0.0001394,2]
[331602517,1720578696916,-609.66495861,0.0001394,2]
[331602518,1720578696925,-500.0,0.0001394,2]
[331602519,1720578696935,-500.0,0.0001394,2]
[331602520,1720578696944,-500.0,0.0001394,2]
[331602521,1720578696954,-500.0,0.0001394,2]
[331602522,1720578696963,-500.0,0.0001394,2]
[331602523,1720578696972,-500.0,0.0001394,2]
[331602524,1720578696982,-500.0,0.0001394,2]
[331602525,1720578696992,-500.0,0.0001394,2]
[331602526,1720578697002,-500.0,0.0001394,2]
[331602527,1720578697011,-500.0,0.0001394,2]
[331602528,1720578697020,-500.0,0.0001394,2]
[331602529,1720578697029,-500.0,0.0001394,2]